[Event "Early-Titled-Tuesday-Blitz-October-03-2023"]
[Site "Chess.com"]
[Date "2023.10.03"]
[Round "4"]
[White "Aleksandar-Topalov"]
[Black "chess94cu"]
[Result "1-0"]
[WhiteElo "2413"]
[BlackElo "2668"]
[TimeControl "180+1"]
[EndTime "8:41:19 PDT"]
[Termination "Aleksandar-Topalov won on time"]

1. b3 {[%clk 0:03:00.9]} 1... c5 {[%clk 0:02:56.9]} 2. Bb2 {[%clk 0:03:00.7]}
2... Nc6 {[%clk 0:02:57.6]} 3. Nf3 {[%clk 0:03:00.7]} 3... d6 {[%clk 0:02:55.9]}
4. d4 {[%clk 0:03:00.3]} 4... cxd4 {[%clk 0:02:53.1]} 5. Nxd4 {[%clk 0:03:00.6]}
5... Nf6 {[%clk 0:02:53.8]} 6. c4 {[%clk 0:03:00.8]} 6... e6 {[%clk 0:02:52.1]}
7. Nc3 {[%clk 0:03:00.9]} 7... Be7 {[%clk 0:02:52.2]} 8. e3 {[%clk 0:03:01.2]}
8... O-O {[%clk 0:02:52.6]} 9. Be2 {[%clk 0:03:01.5]} 9... a6 {[%clk 0:02:52.9]}
10. O-O {[%clk 0:03:01.6]} 10... Qc7 {[%clk 0:02:53.3]} 11. Rc1 {[%clk 0:03:01]}
11... Nxd4 {[%clk 0:02:53.4]} 12. Qxd4 {[%clk 0:02:59.7]} 12... b6 {[%clk
0:02:53.2]} 13. Bf3 {[%clk 0:02:59.6]} 13... Bb7 {[%clk 0:02:53.1]} 14. Bxb7
{[%clk 0:02:54.7]} 14... Qxb7 {[%clk 0:02:54]} 15. Rfd1 {[%clk 0:02:52.1]} 15...
Rfd8 {[%clk 0:02:52.5]} 16. a4 {[%clk 0:02:50.6]} 16... Bf8 {[%clk 0:02:48]} 17.
f3 {[%clk 0:02:44.5]} 17... d5 {[%clk 0:02:45.4]} 18. cxd5 {[%clk 0:02:39]}
18... Nxd5 {[%clk 0:02:45.5]} 19. Nxd5 {[%clk 0:02:38.2]} 19... Rxd5 {[%clk
0:02:46.4]} 20. Qc4 {[%clk 0:02:20.1]} 20... Rad8 {[%clk 0:02:44.9]} 21. Rxd5
{[%clk 0:02:13.4]} 21... Rxd5 {[%clk 0:02:45.8]} 22. Rc2 {[%clk 0:02:06]} 22...
b5 {[%clk 0:02:32.9]} 23. axb5 {[%clk 0:02:04.7]} 23... axb5 {[%clk 0:02:33.8]}
24. Qe2 {[%clk 0:01:55.9]} 24... Qd7 {[%clk 0:02:27.5]} 25. Kf2 {[%clk
0:01:48.2]} 25... Rd3 {[%clk 0:02:18.8]} 26. Bc3 {[%clk 0:01:26.6]} 26... b4
{[%clk 0:02:03.1]} 27. Rd2 {[%clk 0:01:23.8]} 27... Rxd2 {[%clk 0:01:48.1]} 28.
Bxd2 {[%clk 0:01:23.5]} 28... Qc7 {[%clk 0:01:43]} 29. Qc4 {[%clk 0:01:11.1]}
29... Qxc4 {[%clk 0:01:14.1]} 30. bxc4 {[%clk 0:01:11]} 30... b3 {[%clk
0:01:15]} 31. Bc1 {[%clk 0:01:09.1]} 31... Be7 {[%clk 0:01:15.4]} 32. c5 {[%clk
0:00:36.6]} 32... Bxc5 {[%clk 0:01:15]} 33. Ke2 {[%clk 0:00:37.1]} 33... Be7
{[%clk 0:01:10.8]} 34. Bb2 {[%clk 0:00:34.7]} 34... Bc5 {[%clk 0:00:47]} 35. Kd3
{[%clk 0:00:31.4]} 35... Kf8 {[%clk 0:00:45.6]} 36. e4 {[%clk 0:00:31.9]} 36...
Bd6 {[%clk 0:00:45.6]} 37. h3 {[%clk 0:00:30.3]} 37... f6 {[%clk 0:00:36.1]} 38.
Kc4 {[%clk 0:00:29.9]} 38... Kf7 {[%clk 0:00:35.2]} 39. Kxb3 {[%clk 0:00:30.1]}
39... Kg6 {[%clk 0:00:35.9]} 40. Bc1 {[%clk 0:00:27.2]} 40... Kh5 {[%clk
0:00:36]} 41. Be3 {[%clk 0:00:19.7]} 41... Kh4 {[%clk 0:00:34.6]} 42. Bf2+
{[%clk 0:00:20]} 42... Bg3 {[%clk 0:00:34.2]} 43. Bg1 {[%clk 0:00:20.2]} 43...
Be1 {[%clk 0:00:31.6]} 44. Bh2 {[%clk 0:00:20.2]} 44... e5 {[%clk 0:00:32.2]}
45. Kc4 {[%clk 0:00:19.5]} 45... h5 {[%clk 0:00:26.5]} 46. Kd5 {[%clk
0:00:19.2]} 46... Bg3 {[%clk 0:00:26.3]} 47. Bg1 {[%clk 0:00:18.7]} 47... Kg5
{[%clk 0:00:12.6]} 48. Ke6 {[%clk 0:00:18.5]} 48... Kg6 {[%clk 0:00:09.6]} 49.
Ke7 {[%clk 0:00:16.1]} 49... f5 {[%clk 0:00:08.6]} 50. Ke6 {[%clk 0:00:16.2]}
50... fxe4 {[%clk 0:00:07.3]} 51. fxe4 {[%clk 0:00:16.2]} 51... Kg5 {[%clk
0:00:08.2]} 52. Be3+ {[%clk 0:00:15.8]} 52... Bf4 {[%clk 0:00:08]} 53. Bf2
{[%clk 0:00:15.6]} 53... g6 {[%clk 0:00:08.6]} 54. Kf7 {[%clk 0:00:15]} 54... h4
{[%clk 0:00:08]} 55. Kg7 {[%clk 0:00:14.2]} 55... Kh5 {[%clk 0:00:07.7]} 56. Kf7
{[%clk 0:00:14.2]} 56... g5 {[%clk 0:00:06.8]} 57. Ke6 {[%clk 0:00:14]} 57... g4
{[%clk 0:00:07.2]} 58. Kf5 {[%clk 0:00:14.3]} 58... gxh3 {[%clk 0:00:02.7]} 59.
gxh3 {[%clk 0:00:14.4]} 59... Bh2 {[%clk 0:00:03.4]} 60. Bc5 {[%clk 0:00:13.7]}
60... Bf4 {[%clk 0:00:03.6]} 61. Bd6 {[%clk 0:00:14]} 61... Bg3 {[%clk
0:00:03.1]} 62. Bxe5 {[%clk 0:00:14.1]} 62... Bf2 {[%clk 0:00:02.5]} 63. Bf4
{[%clk 0:00:13.2]} 63... Bg3 {[%clk 0:00:03.4]} 64. e5 {[%clk 0:00:12.7]} 64...
Bf2 {[%clk 0:00:01.5]} 65. e6 {[%clk 0:00:11.9]} 65... Bc5 {[%clk 0:00:00.9]}
66. Be5 {[%clk 0:00:08.8]} 66... Be7 {[%clk 0:00:01.3]} 67. Bf6 {[%clk
0:00:08.5]} 1-0

[Event "Early-Titled-Tuesday-Blitz-October-03-2023"]
[Site "Chess.com"]
[Date "2023.10.03"]
[Round "4"]
[White "Frolyanov_D"]
[Black "guillembaches"]
[Result "1-0"]
[WhiteElo "2676"]
[BlackElo "2509"]
[TimeControl "180+1"]
[EndTime "8:41:21 PDT"]
[Termination "Frolyanov_D won on time"]

1. d4 {[%clk 0:03:00.9]} 1... d5 {[%clk 0:02:58.9]} 2. c4 {[%clk 0:03:00.4]}
2... Nc6 {[%clk 0:02:58.9]} 3. Nf3 {[%clk 0:02:58.9]} 3... Bg4 {[%clk
0:02:58.2]} 4. cxd5 {[%clk 0:02:51.9]} 4... Bxf3 {[%clk 0:02:57.5]} 5. gxf3
{[%clk 0:02:49.6]} 5... Qxd5 {[%clk 0:02:56.8]} 6. e3 {[%clk 0:02:48.7]} 6... e5
{[%clk 0:02:56.9]} 7. Nc3 {[%clk 0:02:49.2]} 7... Bb4 {[%clk 0:02:56.9]} 8. a3
{[%clk 0:02:47.7]} 8... Bxc3+ {[%clk 0:02:56.9]} 9. bxc3 {[%clk 0:02:48.6]} 9...
Qd6 {[%clk 0:02:52.7]} 10. Qb3 {[%clk 0:02:41.8]} 10... O-O-O {[%clk 0:02:46.1]}
11. a4 {[%clk 0:02:38.7]} 11... Nge7 {[%clk 0:02:37.3]} 12. Rb1 {[%clk
0:02:37.9]} 12... b6 {[%clk 0:02:35]} 13. Ba3 {[%clk 0:02:29.8]} 13... Qf6
{[%clk 0:02:22.4]} 14. Bg2 {[%clk 0:02:11.8]} 14... exd4 {[%clk 0:02:13.9]} 15.
cxd4 {[%clk 0:02:03.5]} 15... Nf5 {[%clk 0:02:12.5]} 16. f4 {[%clk 0:01:40.8]}
16... Ncxd4 {[%clk 0:01:55.9]} 17. exd4 {[%clk 0:01:36.9]} 17... Nxd4 {[%clk
0:01:50.9]} 18. Qh3+ {[%clk 0:01:34.8]} 18... Kb8 {[%clk 0:01:47.1]} 19. O-O
{[%clk 0:01:34]} 19... Ne2+ {[%clk 0:01:41.8]} 20. Kh1 {[%clk 0:01:33.4]} 20...
Nxf4 {[%clk 0:01:40.6]} 21. Qf3 {[%clk 0:01:33.2]} 21... Nxg2 {[%clk 0:01:34.8]}
22. Qxf6 {[%clk 0:01:29.3]} 22... gxf6 {[%clk 0:01:33.7]} 23. Kxg2 {[%clk
0:01:30.2]} 23... Rhg8+ {[%clk 0:01:24]} 24. Kh1 {[%clk 0:01:30.2]} 24... Rd3
{[%clk 0:01:23]} 25. Be7 {[%clk 0:01:25.5]} 25... Rg4 {[%clk 0:01:14.3]} 26. a5
{[%clk 0:01:22.1]} 26... f5 {[%clk 0:00:59.9]} 27. Bf6 {[%clk 0:01:00]} 27...
Kb7 {[%clk 0:00:54]} 28. Be5 {[%clk 0:00:57.5]} 28... Re4 {[%clk 0:00:49]} 29.
f4 {[%clk 0:00:50.9]} 29... Re2 {[%clk 0:00:42.1]} 30. Rfe1 {[%clk 0:00:45.6]}
30... Rc2 {[%clk 0:00:30.2]} 31. Rec1 {[%clk 0:00:42.4]} 31... Rxc1+ {[%clk
0:00:27.8]} 32. Rxc1 {[%clk 0:00:43.3]} 32... c5 {[%clk 0:00:27.6]} 33. Kg2
{[%clk 0:00:40.7]} 33... Kc6 {[%clk 0:00:25.7]} 34. axb6 {[%clk 0:00:35.7]}
34... axb6 {[%clk 0:00:25.5]} 35. h4 {[%clk 0:00:35.4]} 35... b5 {[%clk
0:00:23.8]} 36. h5 {[%clk 0:00:35.7]} 36... b4 {[%clk 0:00:22.1]} 37. Kf2 {[%clk
0:00:35.8]} 37... Kd5 {[%clk 0:00:21.5]} 38. Ke2 {[%clk 0:00:35]} 38... Rh3
{[%clk 0:00:21.5]} 39. Rd1+ {[%clk 0:00:34.3]} 39... Ke4 {[%clk 0:00:20.4]} 40.
Rd7 {[%clk 0:00:31.4]} 40... Rh2+ {[%clk 0:00:20.1]} 41. Kd1 {[%clk 0:00:31.3]}
41... c4 {[%clk 0:00:18.6]} 42. Rd4+ {[%clk 0:00:30.2]} 42... Ke3 {[%clk
0:00:18.7]} 43. Rxc4 {[%clk 0:00:30.4]} 43... b3 {[%clk 0:00:19]} 44. Rc3+
{[%clk 0:00:30.2]} 44... Ke4 {[%clk 0:00:18.3]} 45. Rxb3 {[%clk 0:00:30.1]}
45... Rxh5 {[%clk 0:00:18.3]} 46. Rb4+ {[%clk 0:00:30]} 46... Kf3 {[%clk
0:00:18]} 47. Rb6 {[%clk 0:00:28.1]} 47... Rh2 {[%clk 0:00:16.6]} 48. Rf6 {[%clk
0:00:27]} 48... Ke4 {[%clk 0:00:16.2]} 49. Rxf7 {[%clk 0:00:26.9]} 49... h5
{[%clk 0:00:16.6]} 50. Rg7 {[%clk 0:00:21.5]} 50... h4 {[%clk 0:00:16.7]} 51.
Ke1 {[%clk 0:00:20.7]} 51... h3 {[%clk 0:00:16.6]} 52. Kf1 {[%clk 0:00:20.2]}
52... Kf3 {[%clk 0:00:16.8]} 53. Kg1 {[%clk 0:00:18.8]} 53... Re2 {[%clk
0:00:13.5]} 54. Rg5 {[%clk 0:00:14.8]} 54... Ke4 {[%clk 0:00:08.9]} 55. Rg3
{[%clk 0:00:13.3]} 55... h2+ {[%clk 0:00:05.5]} 56. Kh1 {[%clk 0:00:13]} 56...
Rc2 {[%clk 0:00:05.2]} 57. Rg2 {[%clk 0:00:12]} 57... Rc1+ {[%clk 0:00:02.1]}
58. Kxh2 {[%clk 0:00:12.1]} 58... Kf3 {[%clk 0:00:03]} 59. Rg3+ {[%clk
0:00:10.3]} 59... Kf2 {[%clk 0:00:03.5]} 60. Rg2+ {[%clk 0:00:09.9]} 60... Kf3
{[%clk 0:00:03.4]} 61. Rb2 {[%clk 0:00:09.7]} 61... Rc8 {[%clk 0:00:03.2]} 62.
Rb3+ {[%clk 0:00:08.5]} 62... Kg4 {[%clk 0:00:03.7]} 63. Rg3+ {[%clk 0:00:07.9]}
63... Kh4 {[%clk 0:00:03.4]} 64. Rg5 {[%clk 0:00:07.7]} 64... Rc2+ {[%clk
0:00:02.2]} 65. Kg1 {[%clk 0:00:07.4]} 65... Rc1+ {[%clk 0:00:03]} 66. Kf2
{[%clk 0:00:07.2]} 66... Rc2+ {[%clk 0:00:03.5]} 67. Ke3 {[%clk 0:00:07.4]}
67... Kh3 {[%clk 0:00:03.8]} 68. Kd4 {[%clk 0:00:07.1]} 68... Ra2 {[%clk
0:00:02.9]} 69. Rxf5 {[%clk 0:00:06.6]} 69... Kg4 {[%clk 0:00:02.3]} 70. Rg5+
{[%clk 0:00:06.8]} 70... Kf3 {[%clk 0:00:03.2]} 71. Kd5 {[%clk 0:00:06.6]} 71...
Rd2+ {[%clk 0:00:04.1]} 72. Ke6 {[%clk 0:00:06.7]} 1-0

[Event "Early-Titled-Tuesday-Blitz-October-03-2023"]
[Site "Chess.com"]
[Date "2023.10.03"]
[Round "4"]
[White "PoXerStar"]
[Black "Nbk90"]
[Result "1-0"]
[WhiteElo "2425"]
[BlackElo "2112"]
[TimeControl "180+1"]
[EndTime "8:41:22 PDT"]
[Termination "PoXerStar won by checkmate"]

1. d4 {[%clk 0:03:00.1]} 1... Nf6 {[%clk 0:02:56.4]} 2. Nc3 {[%clk 0:03:00]}
2... d5 {[%clk 0:02:55.5]} 3. Bf4 {[%clk 0:03:00.5]} 3... e6 {[%clk 0:02:54.1]}
4. e3 {[%clk 0:03:00.3]} 4... Be7 {[%clk 0:02:52.2]} 5. Nb5 {[%clk 0:02:54.6]}
5... Na6 {[%clk 0:02:51.9]} 6. Nf3 {[%clk 0:02:53.2]} 6... Bd7 {[%clk
0:02:51.7]} 7. h3 {[%clk 0:02:43.9]} 7... O-O {[%clk 0:02:47.2]} 8. a3 {[%clk
0:02:38.4]} 8... c5 {[%clk 0:02:45.8]} 9. Nc3 {[%clk 0:02:27.6]} 9... Qb6 {[%clk
0:02:37.6]} 10. Rb1 {[%clk 0:02:27.9]} 10... Nb8 {[%clk 0:02:31.5]} 11. dxc5
{[%clk 0:02:25]} 11... Bxc5 {[%clk 0:02:28.2]} 12. Bd3 {[%clk 0:02:24.6]} 12...
Nc6 {[%clk 0:02:26.8]} 13. O-O {[%clk 0:02:22.2]} 13... Be7 {[%clk 0:02:25.3]}
14. Nd4 {[%clk 0:02:11]} 14... Rac8 {[%clk 0:02:01.1]} 15. Nce2 {[%clk
0:02:01.5]} 15... Rfe8 {[%clk 0:01:57.3]} 16. Bg5 {[%clk 0:01:55.3]} 16... e5
{[%clk 0:01:52.8]} 17. Nf5 {[%clk 0:01:45.6]} 17... e4 {[%clk 0:01:40.1]} 18.
Nxe7+ {[%clk 0:01:27.2]} 18... Nxe7 {[%clk 0:01:39.1]} 19. Bxf6 {[%clk
0:01:24.1]} 19... Qxf6 {[%clk 0:01:28.1]} 20. Bxe4 {[%clk 0:01:21.6]} 20... dxe4
{[%clk 0:01:28.1]} 21. Qxd7 {[%clk 0:01:20.9]} 21... Red8 {[%clk 0:01:26.9]} 22.
Qxb7 {[%clk 0:01:19.4]} 22... Rxc2 {[%clk 0:01:25.5]} 23. Nd4 {[%clk 0:01:17.4]}
23... Rd2 {[%clk 0:01:04.4]} 24. Qxa7 {[%clk 0:01:09.5]} 24... Nf5 {[%clk
0:00:53.2]} 25. Qa5 {[%clk 0:01:05.4]} 25... Nxd4 {[%clk 0:00:44.7]} 26. exd4
{[%clk 0:01:03.2]} 26... Qxd4 {[%clk 0:00:42.1]} 27. Qf5 {[%clk 0:00:30.4]}
27... g6 {[%clk 0:00:40.4]} 28. Qf4 {[%clk 0:00:29.8]} 28... Rc8 {[%clk
0:00:29.2]} 29. b4 {[%clk 0:00:25.5]} 29... Rcc2 {[%clk 0:00:23.3]} 30. b5
{[%clk 0:00:25.7]} 30... Qb6 {[%clk 0:00:17.5]} 31. Qxe4 {[%clk 0:00:19]} 31...
Rxf2 {[%clk 0:00:16.9]} 32. Rxf2 {[%clk 0:00:15.2]} 32... Qxf2+ {[%clk
0:00:15.9]} 33. Kh1 {[%clk 0:00:15.9]} 33... Rc8 {[%clk 0:00:13.6]} 34. b6
{[%clk 0:00:15.7]} 34... Qa2 {[%clk 0:00:13.2]} 35. b7 {[%clk 0:00:15.5]} 35...
Rb8 {[%clk 0:00:13.2]} 36. a4 {[%clk 0:00:14.4]} 36... Qa3 {[%clk 0:00:12]} 37.
Qc6 {[%clk 0:00:11.7]} 37... Qa2 {[%clk 0:00:11.2]} 38. Qc8+ {[%clk 0:00:11.7]}
38... Kg7 {[%clk 0:00:11.2]} 39. Qc3+ {[%clk 0:00:11.9]} 39... f6 {[%clk
0:00:10.5]} 40. Qb3 {[%clk 0:00:12.1]} 40... Qf2 {[%clk 0:00:09.6]} 41. a5
{[%clk 0:00:11.9]} 41... Qa7 {[%clk 0:00:09.5]} 42. a6 {[%clk 0:00:12]} 42...
Qxa6 {[%clk 0:00:09.5]} 43. Qf3 {[%clk 0:00:11.1]} 43... Qd6 {[%clk 0:00:09.4]}
44. Qc3 {[%clk 0:00:08.6]} 44... Kh6 {[%clk 0:00:08.1]} 45. Qc1+ {[%clk
0:00:07.6]} 45... Kg7 {[%clk 0:00:08]} 46. Qc8 {[%clk 0:00:07]} 46... Qe5 {[%clk
0:00:05.7]} 47. Rc1 {[%clk 0:00:06.3]} 47... Kh6 {[%clk 0:00:05.2]} 48. Qc7
{[%clk 0:00:03.3]} 48... Qxc7 {[%clk 0:00:03.7]} 49. Rxc7 {[%clk 0:00:04.2]}
49... Kg5 {[%clk 0:00:03.6]} 50. Kg1 {[%clk 0:00:04.3]} 50... h5 {[%clk
0:00:04.2]} 51. Kf2 {[%clk 0:00:04.4]} 51... f5 {[%clk 0:00:04.6]} 52. Kf3
{[%clk 0:00:04.8]} 52... Kf6 {[%clk 0:00:05.2]} 53. h4 {[%clk 0:00:04.6]} 53...
Ke6 {[%clk 0:00:05.3]} 54. Kf4 {[%clk 0:00:04.9]} 54... Kd6 {[%clk 0:00:05.7]}
55. Rg7 {[%clk 0:00:05.1]} 55... Kc6 {[%clk 0:00:04.7]} 56. Kg5 {[%clk
0:00:05.6]} 56... Rxb7 {[%clk 0:00:03.9]} 57. Rxb7 {[%clk 0:00:04]} 57... Kxb7
{[%clk 0:00:04.8]} 58. Kxg6 {[%clk 0:00:04.9]} 58... f4 {[%clk 0:00:04.1]} 59.
Kf5 {[%clk 0:00:05.8]} 59... Kc6 {[%clk 0:00:04.9]} 60. Kxf4 {[%clk 0:00:05.6]}
60... Kd6 {[%clk 0:00:05.8]} 61. Kg5 {[%clk 0:00:06.5]} 61... Ke7 {[%clk
0:00:06.3]} 62. Kxh5 {[%clk 0:00:07.4]} 62... Kf7 {[%clk 0:00:07.2]} 63. Kg5
{[%clk 0:00:07.3]} 63... Kg7 {[%clk 0:00:07.3]} 64. g4 {[%clk 0:00:07.8]} 64...
Kh7 {[%clk 0:00:08.2]} 65. Kf6 {[%clk 0:00:07.8]} 65... Kh6 {[%clk 0:00:08.2]}
66. g5+ {[%clk 0:00:07.7]} 66... Kh7 {[%clk 0:00:09.1]} 67. g6+ {[%clk
0:00:08.1]} 67... Kh8 {[%clk 0:00:09.8]} 68. g7+ {[%clk 0:00:07.6]} 68... Kg8
{[%clk 0:00:10]} 69. h5 {[%clk 0:00:06.7]} 69... Kh7 {[%clk 0:00:10.3]} 70. Kf7
{[%clk 0:00:07.6]} 70... Kh6 {[%clk 0:00:11]} 71. g8=Q {[%clk 0:00:07.5]} 71...
Kxh5 {[%clk 0:00:11.9]} 72. Kf6 {[%clk 0:00:08]} 72... Kh4 {[%clk 0:00:12.8]}
73. Kf5 {[%clk 0:00:07.7]} 73... Kh3 {[%clk 0:00:13.7]} 74. Kf4 {[%clk
0:00:08.1]} 74... Kh4 {[%clk 0:00:14.4]} 75. Qh8# {[%clk 0:00:08]} 1-0

[Event "Early-Titled-Tuesday-Blitz-October-03-2023"]
[Site "Chess.com"]
[Date "2023.10.03"]
[Round "4"]
[White "GalaxyRoman"]
[Black "Herzog2012"]
[Result "1/2-1/2"]
[WhiteElo "2716"]
[BlackElo "2526"]
[TimeControl "180+1"]
[EndTime "8:41:30 PDT"]
[Termination "Game drawn by repetition"]

1. e4 {[%clk 0:03:00.9]} 1... c5 {[%clk 0:02:58.1]} 2. Nc3 {[%clk 0:02:59.3]}
2... Nc6 {[%clk 0:02:58]} 3. f4 {[%clk 0:02:59.5]} 3... g6 {[%clk 0:02:57.1]} 4.
Nf3 {[%clk 0:02:58.6]} 4... Bg7 {[%clk 0:02:56.8]} 5. Bb5 {[%clk 0:02:59.1]}
5... Nd4 {[%clk 0:02:56]} 6. O-O {[%clk 0:02:58.7]} 6... Nxb5 {[%clk 0:02:49.1]}
7. Nxb5 {[%clk 0:02:59.6]} 7... a6 {[%clk 0:02:44.3]} 8. Nc3 {[%clk 0:02:59.1]}
8... d6 {[%clk 0:02:43.8]} 9. d3 {[%clk 0:02:56.8]} 9... Nf6 {[%clk 0:02:42.3]}
10. Qe1 {[%clk 0:02:56.5]} 10... Bg4 {[%clk 0:02:38.4]} 11. h3 {[%clk
0:02:55.6]} 11... Bxf3 {[%clk 0:02:37.7]} 12. Rxf3 {[%clk 0:02:56.5]} 12... Qd7
{[%clk 0:02:23.6]} 13. Be3 {[%clk 0:02:52.8]} 13... Qc6 {[%clk 0:02:03.4]} 14.
Rd1 {[%clk 0:02:46.2]} 14... d5 {[%clk 0:02:00.7]} 15. e5 {[%clk 0:02:41.6]}
15... d4 {[%clk 0:01:48]} 16. exf6 {[%clk 0:02:39.1]} 16... Bxf6 {[%clk
0:01:48.9]} 17. Ne4 {[%clk 0:02:24.7]} 17... dxe3 {[%clk 0:01:47.3]} 18. c3
{[%clk 0:02:16.5]} 18... O-O {[%clk 0:01:29.9]} 19. Qxe3 {[%clk 0:02:14.4]}
19... b6 {[%clk 0:01:27.2]} 20. Rf2 {[%clk 0:02:13]} 20... Rad8 {[%clk
0:01:25.7]} 21. f5 {[%clk 0:02:08.7]} 21... Bg7 {[%clk 0:01:18.5]} 22. Rdf1
{[%clk 0:02:07]} 22... Qd5 {[%clk 0:01:16.8]} 23. Rf3 {[%clk 0:01:40.3]} 23...
Qxa2 {[%clk 0:00:58]} 24. R1f2 {[%clk 0:01:27.7]} 24... Qd5 {[%clk 0:00:50.7]}
25. h4 {[%clk 0:01:20.1]} 25... Qe5 {[%clk 0:00:37]} 26. h5 {[%clk 0:01:14.8]}
26... Kh8 {[%clk 0:00:28]} 27. hxg6 {[%clk 0:00:52.5]} 27... fxg6 {[%clk
0:00:27]} 28. fxg6 {[%clk 0:00:52.2]} 28... hxg6 {[%clk 0:00:22.4]} 29. Rxf8+
{[%clk 0:00:50.6]} 29... Rxf8 {[%clk 0:00:23.3]} 30. Rxf8+ {[%clk 0:00:49.4]}
30... Bxf8 {[%clk 0:00:23.1]} 31. Qf3 {[%clk 0:00:35.5]} 31... Qf5 {[%clk
0:00:20.6]} 32. Qg3 {[%clk 0:00:32.6]} 32... Bh6 {[%clk 0:00:17.6]} 33. Qh4
{[%clk 0:00:25]} 33... Qh5 {[%clk 0:00:12.1]} 34. Qxh5 {[%clk 0:00:18.2]} 34...
gxh5 {[%clk 0:00:11.9]} 35. Ng3 {[%clk 0:00:17.2]} 35... Bc1 {[%clk 0:00:07.2]}
36. b3 {[%clk 0:00:14.5]} 36... Kg7 {[%clk 0:00:04.3]} 37. Nxh5+ {[%clk
0:00:13.7]} 37... Kg6 {[%clk 0:00:04.8]} 38. Ng3 {[%clk 0:00:13.6]} 38... b5
{[%clk 0:00:05]} 39. c4 {[%clk 0:00:13.2]} 39... b4 {[%clk 0:00:04.1]} 40. Ne4
{[%clk 0:00:13.5]} 40... a5 {[%clk 0:00:03.7]} 41. Kf2 {[%clk 0:00:10.9]} 41...
Bb2 {[%clk 0:00:03.1]} 42. Ke2 {[%clk 0:00:07]} 42... Bd4 {[%clk 0:00:03.6]} 43.
Kd2 {[%clk 0:00:05.3]} 43... Kf5 {[%clk 0:00:04.3]} 44. Kc2 {[%clk 0:00:03.9]}
44... Kf4 {[%clk 0:00:04.5]} 45. Nd2 {[%clk 0:00:02]} 45... e5 {[%clk
0:00:04.4]} 46. Ne4 {[%clk 0:00:02]} 46... Ke3 {[%clk 0:00:03.4]} 47. g4 {[%clk
0:00:01.7]} 47... Kf4 {[%clk 0:00:03.7]} 48. g5 {[%clk 0:00:02.6]} 48... Kf5
{[%clk 0:00:04.2]} 49. Nd6+ {[%clk 0:00:03]} 49... Kxg5 {[%clk 0:00:04.1]} 50.
Nb7 {[%clk 0:00:03.9]} 50... Kf4 {[%clk 0:00:03.9]} 51. Nxa5 {[%clk 0:00:03.9]}
51... Ke3 {[%clk 0:00:04.2]} 52. Nc6 {[%clk 0:00:03.8]} 52... Ke2 {[%clk
0:00:04.7]} 53. Ne7 {[%clk 0:00:03.7]} 53... Ke3 {[%clk 0:00:04.9]} 54. Ng6
{[%clk 0:00:03.8]} 54... Ke2 {[%clk 0:00:04.1]} 55. Nf8 {[%clk 0:00:03.8]} 55...
Ke3 {[%clk 0:00:04.1]} 56. Ne6 {[%clk 0:00:04.1]} 56... Ke2 {[%clk 0:00:04.5]}
57. Ng5 {[%clk 0:00:04.3]} 57... Ke3 {[%clk 0:00:04.7]} 58. Ne4 {[%clk
0:00:04.2]} 58... Ke2 {[%clk 0:00:04.9]} 59. Ng3+ {[%clk 0:00:04.1]} 59... Ke3
{[%clk 0:00:04.8]} 60. Nf1+ {[%clk 0:00:04.2]} 60... Ke2 {[%clk 0:00:05.1]} 61.
Nd2 {[%clk 0:00:05.1]} 61... Ke3 {[%clk 0:00:04.2]} 62. Ne4 {[%clk 0:00:04]}
62... Ke2 {[%clk 0:00:04.3]} 63. Ng5 {[%clk 0:00:04.1]} 63... Ke3 {[%clk
0:00:04.5]} 64. Nh7 {[%clk 0:00:04.2]} 64... Ke2 {[%clk 0:00:04.3]} 65. Nf6
{[%clk 0:00:04.3]} 65... Ke3 {[%clk 0:00:04.7]} 66. Nd7 {[%clk 0:00:04.2]} 66...
Ke2 {[%clk 0:00:05.1]} 67. Nb6 {[%clk 0:00:04.6]} 67... Ke3 {[%clk 0:00:05.4]}
68. Nd5+ {[%clk 0:00:04.8]} 68... Ke2 {[%clk 0:00:05.9]} 69. Ne7 {[%clk
0:00:01.6]} 69... Ke3 {[%clk 0:00:06.3]} 70. Nd5+ {[%clk 0:00:02]} 70... Ke2
{[%clk 0:00:05.3]} 71. Nf6 {[%clk 0:00:02.9]} 71... Ke3 {[%clk 0:00:05.5]} 72.
Ne4 {[%clk 0:00:03.8]} 1/2-1/2